[Event "NJSK 2018 Jeugd A"]
[Site "Assen, Netherlands"]
[Date "2018.05.02"]
[Round "4.9"]
[White "Bueno, Mark"]
[Black "Van Hoorn, Geert"]
[Result "0-1"]
[TimeControl "40/90m+30m+30sec/move"]
[WhiteElo "1999"]
[BlackElo "2008"]

1. e4 {[%clk 01:29:25]} {[%emt 00:01:34]} c5 {[%clk 01:30:34]} {[%emt
00:00:27]} 2. Nf3 {[%clk 01:29:52]} {[%emt 00:00:03]} d6 {[%clk 01:30:59]}
{[%emt 00:00:05]} 3. d4 {[%clk 01:30:19]} {[%emt 00:00:02]} cxd4 {[%clk
01:31:25]} {[%emt 00:00:05]} 4. Nxd4 {[%clk 01:30:46]} {[%emt 00:00:03]} Nf6
{[%clk 01:31:50]} {[%emt 00:00:05]} 5. Nc3 {[%clk 01:31:13]} {[%emt 00:00:03]}
g6 {[%clk 01:32:15]} {[%emt 00:00:05]} 6. Be3 {[%clk 01:31:40]} {[%emt
00:00:03]} Bg7 {[%clk 01:32:41]} {[%emt 00:00:04]} 7. f3 {[%clk 01:32:06]}
{[%emt 00:00:04]} O-O {[%clk 01:33:06]} {[%emt 00:00:05]} 8. Bc4 {[%clk
01:32:33]} {[%emt 00:00:02]} Nc6 {[%clk 01:33:31]} {[%emt 00:00:06]} 9. Qd2
{[%clk 01:32:57]} {[%emt 00:00:06]} Bd7 {[%clk 01:33:54]} {[%emt 00:00:06]} 10.
O-O-O {[%clk 01:33:21]} {[%emt 00:00:06]} Rc8 {[%clk 01:34:20]} {[%emt
00:00:05]} 11. Bb3 {[%clk 01:33:48]} {[%emt 00:00:03]} Nxd4 {[%clk 01:34:43]}
{[%emt 00:00:07]} 12. Bxd4 {[%clk 01:34:08]} {[%emt 00:00:10]} b5 {[%clk
01:35:07]} {[%emt 00:00:05]} 13. h4 {[%clk 01:28:01]} {[%emt 00:06:37]} a5
{[%clk 01:35:33]} {[%emt 00:00:05]} 14. a4 {[%clk 01:18:10]} {[%emt 00:10:21]}
bxa4 {[%clk 01:34:28]} {[%emt 00:01:35]} 15. Nxa4 {[%clk 01:18:11]} {[%emt
00:00:28]} Bxa4 {[%clk 01:34:31]} {[%emt 00:00:28]} 16. Bxa4 {[%clk 01:18:34]}
{[%emt 00:00:07]} Rc4 {[%clk 01:34:50]} {[%emt 00:00:10]} 17. Bb3 {[%clk
01:17:53]} {[%emt 00:01:12]} Nxe4 {[%clk 01:29:35]} {[%emt 00:05:45]} 18. Qe1
{[%clk 01:03:33]} {[%emt 00:14:50]} Rxd4 {[%clk 01:28:29]} {[%emt 00:01:36]} 19.
Rxd4 {[%clk 01:03:55]} {[%emt 00:00:08]} Bxd4 {[%clk 01:28:48]} {[%emt
00:00:10]} 20. Qxe4 {[%clk 01:04:15]} {[%emt 00:00:10]} Qb6 {[%clk 01:13:38]}
{[%emt 00:15:40]} 21. h5 {[%clk 00:53:39]} {[%emt 00:11:06]} a4 {[%clk
01:13:29]} {[%emt 00:00:40]} 22. hxg6 {[%clk 00:51:54]} {[%emt 00:02:15]} axb3
{[%clk 01:13:39]} {[%emt 00:00:20]} 23. gxf7+ {[%clk 00:48:55]} {[%emt
00:03:28]} Rxf7 {[%clk 01:13:35]} {[%emt 00:00:34]} 24. Qg4+ {[%clk 00:49:02]}
{[%emt 00:00:23]} Bg7 {[%clk 01:08:54]} {[%emt 00:05:12]} 25. Qc8+ {[%clk
00:49:21]} {[%emt 00:00:10]} Rf8 {[%clk 01:06:08]} {[%emt 00:03:16]} 26. Qe6+
{[%clk 00:49:46]} {[%emt 00:00:05]} Kh8 {[%clk 01:06:00]} {[%emt 00:00:38]} 27.
Rxh7 {[%clk 00:43:46]} Kxh7 {[%clk 01:06:14]} {[%emt 00:06:47]} 28. Qe4 {[%clk
00:43:59]} {[%emt 00:00:17]} Kh8 {[%clk 01:06:06]} {[%emt 00:00:38]} 29. Qh4
{[%clk 00:44:04]} {[%emt 00:00:25]} Kg8 {[%clk 01:06:10]} {[%emt 00:00:26]} 30.
Qc4+ {[%clk 00:44:22]} {[%emt 00:00:11]} d5 {[%clk 01:06:18]} {[%emt 00:00:22]}
0-1

[Event "NJSK 2018 Jeugd A"]
[Site "Assen, Netherlands"]
[Date "2018.05.03"]
[Round "5.1"]
[White "Schoppen, Casper"]
[Black "Warmerdam, Max"]
[Result "0-1"]
[TimeControl "40/90m+30m+30sec/move"]
[WhiteElo "2396"]
[BlackElo "2378"]

1. d4 {[%clk 01:20:51]} {[%emt 00:10:08]} Nf6 {[%clk 01:30:55]} {[%emt
00:00:06]} 2. c4 {[%clk 01:21:18]} {[%emt 00:00:03]} g6 {[%clk 01:31:20]}
{[%emt 00:00:04]} 3. Nc3 {[%clk 01:21:43]} {[%emt 00:00:05]} d5 {[%clk
01:31:46]} {[%emt 00:00:05]} 4. Nf3 {[%clk 01:21:40]} {[%emt 00:00:32]} Bg7
{[%clk 01:32:07]} {[%emt 00:00:10]} 5. h4 {[%clk 01:20:57]} {[%emt 00:01:13]}
c5 {[%clk 01:14:40]} {[%emt 00:17:56]} 6. h5 {[%clk 01:16:03]} {[%emt
00:05:24]} cxd4 {[%clk 01:02:43]} {[%emt 00:12:27]} 7. h6 {[%clk 01:09:01]}
{[%emt 00:07:32]} Bf8 {[%clk 01:02:22]} {[%emt 00:00:52]} 8. Nxd4 {[%clk
01:02:37]} {[%emt 00:06:53]} e5 {[%clk 00:52:00]} {[%emt 00:10:54]} 9. Nf3
{[%clk 00:42:22]} {[%emt 00:20:44]} d4 {[%clk 00:47:44]} {[%emt 00:04:46]} 10.
Nxe5 {[%clk 00:33:44]} {[%emt 00:09:07]} Nc6 {[%clk 00:41:30]} {[%emt
00:06:44]} 11. Nxc6 {[%clk 00:31:56]} {[%emt 00:02:18]} bxc6 {[%clk 00:41:56]}
{[%emt 00:00:05]} 12. Nb1 {[%clk 00:22:11]} {[%emt 00:10:14]} Ne4 {[%clk
00:33:55]} {[%emt 00:08:31]} 13. Nd2 {[%clk 00:21:06]} {[%emt 00:01:36]} Bb4
{[%clk 00:31:40]} {[%emt 00:02:45]} 14. Qc2 {[%clk 00:13:35]} {[%emt 00:08:01]}
Bf5 {[%clk 00:23:15]} {[%emt 00:08:55]} 15. Qa4 {[%clk 00:13:41]} {[%emt
00:00:23]} Qb6 {[%clk 00:22:19]} {[%emt 00:01:26]} 16. Qb3 {[%clk 00:11:43]}
{[%emt 00:02:28]} O-O-O {[%clk 00:19:18]} {[%emt 00:03:31]} 17. g4 {[%clk
00:11:14]} {[%emt 00:00:59]} d3 {[%clk 00:17:28]} {[%emt 00:02:20]} 18. e3
{[%clk 00:11:09]} {[%emt 00:00:34]} Rhe8 {[%clk 00:17:42]} {[%emt 00:00:17]} 19.
gxf5 {[%clk 00:09:38]} {[%emt 00:02:01]} Nxf2 {[%clk 00:17:54]} {[%emt
00:00:18]} 20. c5 {[%clk 00:08:41]} {[%emt 00:01:27]} Qxc5 {[%clk 00:18:00]}
{[%emt 00:00:24]} 21. Kxf2 {[%clk 00:08:41]} {[%emt 00:00:30]} Qxe3+ {[%clk
00:18:23]} {[%emt 00:00:07]} 22. Kg2 {[%clk 00:09:08]} {[%emt 00:00:03]} Qg5+
{[%clk 00:18:44]} {[%emt 00:00:09]} 23. Kf3 {[%clk 00:09:28]} {[%emt 00:00:10]}
Re3+ {[%clk 00:19:08]} {[%emt 00:00:06]} 24. Kf2 {[%clk 00:09:55]} {[%emt
00:00:03]} Qg3# {[%clk 00:19:35]} {[%emt 00:00:04]} 0-1

[Event "NJSK 2018 Jeugd A"]
[Site "Assen, Netherlands"]
[Date "2018.05.03"]
[Round "5.2"]
[White "Kokje, Joris"]
[Black "Pols, Wiggert"]
[Result "1/2-1/2"]
[TimeControl "40/90m+30m+30sec/move"]
[WhiteElo "2265"]
[BlackElo "2068"]

1. d4 {[%clk 01:30:58]} {[%emt 00:00:03]} Nf6 {[%clk 01:30:54]} {[%emt
00:00:06]} 2. c4 {[%clk 01:31:23]} {[%emt 00:00:04]} g6 {[%clk 01:31:22]}
{[%emt 00:00:04]} 3. g3 {[%clk 01:31:49]} {[%emt 00:00:03]} Bg7 {[%clk
01:31:47]} {[%emt 00:00:05]} 4. Bg2 {[%clk 01:32:15]} {[%emt 00:00:04]} O-O
{[%clk 01:32:12]} {[%emt 00:00:06]} 5. Nc3 {[%clk 01:32:42]} {[%emt 00:00:04]}
d6 {[%clk 01:32:38]} {[%emt 00:00:04]} 6. Nf3 {[%clk 01:33:07]} {[%emt
00:00:04]} c5 {[%clk 01:32:54]} {[%emt 00:00:14]} 7. O-O {[%clk 01:33:31]}
{[%emt 00:00:06]} Nc6 {[%clk 01:33:20]} {[%emt 00:00:03]} 8. dxc5 {[%clk
01:33:56]} {[%emt 00:00:07]} dxc5 {[%clk 01:33:45]} {[%emt 00:00:04]} 9. Be3
{[%clk 01:34:22]} {[%emt 00:00:04]} Qa5 {[%clk 01:32:47]} {[%emt 00:01:27]} 10.
Qb3 {[%clk 01:34:48]} {[%emt 00:00:05]} Be6 {[%clk 01:25:08]} {[%emt 00:08:09]}
11. Ng5 {[%clk 01:29:23]} {[%emt 00:05:54]} Bd7 {[%clk 01:22:08]} {[%emt
00:03:30]} 12. Rfd1 {[%clk 01:25:05]} {[%emt 00:04:48]} h6 {[%clk 01:13:12]}
{[%emt 00:09:27]} 13. Nge4 {[%clk 01:18:08]} {[%emt 00:07:27]} Nxe4 {[%clk
01:11:16]} {[%emt 00:02:25]} 14. Nxe4 {[%clk 01:15:34]} {[%emt 00:03:04]} Nd4
{[%clk 01:11:02]} {[%emt 00:00:45]} 15. Bxd4 {[%clk 01:15:24]} {[%emt
00:00:39]} cxd4 {[%clk 01:03:15]} {[%emt 00:08:17]} 16. Qxb7 {[%clk 01:08:09]}
{[%emt 00:07:47]} Be6 {[%clk 00:58:57]} {[%emt 00:04:47]} 17. Qxe7 {[%clk
01:06:35]} {[%emt 00:02:04]} Bxc4 {[%clk 00:52:38]} {[%emt 00:06:48]} 18. Nf6+
{[%clk 01:01:50]} {[%emt 00:05:16]} Bxf6 {[%clk 00:52:37]} {[%emt 00:00:31]} 19.
Qxf6 {[%clk 01:02:13]} {[%emt 00:00:06]} Rad8 {[%clk 00:47:29]} {[%emt
00:05:38]} 20. Rxd4 {[%clk 00:59:26]} {[%emt 00:03:17]} Rxd4 {[%clk 00:47:42]}
{[%emt 00:00:17]} 21. Qxd4 {[%clk 00:59:49]} {[%emt 00:00:07]} Bxe2 {[%clk
00:47:45]} {[%emt 00:00:27]} 22. Qe3 {[%clk 00:56:57]} {[%emt 00:03:22]} Bc4
{[%clk 00:36:17]} {[%emt 00:11:58]} 23. Qxh6 {[%clk 00:49:40]} {[%emt
00:07:46]} Bxa2 {[%clk 00:36:09]} {[%emt 00:00:39]} 24. h4 {[%clk 00:43:02]}
{[%emt 00:07:08]} Re8 {[%clk 00:30:39]} {[%emt 00:06:00]} 25. Qc1 {[%clk
00:36:48]} {[%emt 00:06:45]} Qb4 {[%clk 00:29:21]} {[%emt 00:01:48]} 26. Kh2
{[%clk 00:34:51]} {[%emt 00:02:26]} Qc4 {[%clk 00:22:51]} {[%emt 00:07:00]} 27.
Qxc4 {[%clk 00:30:44]} {[%emt 00:04:38]} Bxc4 {[%clk 00:23:16]} {[%emt
00:00:04]} 28. Rxa7 {[%clk 00:31:08]} {[%emt 00:00:07]} Re2 {[%clk 00:23:28]}
{[%emt 00:00:18]} 29. Ra4 {[%clk 00:25:40]} {[%emt 00:05:58]} Be6 {[%clk
00:20:06]} {[%emt 00:03:52]} 30. Rf4 {[%clk 00:24:52]} {[%emt 00:01:18]} Rxb2
{[%clk 00:20:12]} {[%emt 00:00:23]} 31. g4 {[%clk 00:25:02]} {[%emt 00:00:19]}
Kg7 {[%clk 00:19:14]} {[%emt 00:01:29]} 32. Kg3 {[%clk 00:24:52]} {[%emt
00:00:40]} Rc2 {[%clk 00:18:34]} {[%emt 00:01:10]} 33. Ra4 {[%clk 00:23:43]}
{[%emt 00:01:39]} Rc4 {[%clk 00:15:56]} {[%emt 00:03:08]} 34. Rxc4 {[%clk
00:23:53]} {[%emt 00:00:20]} Bxc4 {[%clk 00:16:22]} {[%emt 00:00:04]} 35. Kf4
{[%clk 00:23:58]} {[%emt 00:00:25]} f6 {[%clk 00:14:41]} {[%emt 00:02:11]} 36.
g5 {[%clk 00:22:59]} {[%emt 00:01:28]} fxg5+ {[%clk 00:14:55]} {[%emt
00:00:17]} 37. hxg5 {[%clk 00:23:18]} {[%emt 00:00:11]} Be6 {[%clk 00:14:24]}
{[%emt 00:01:01]} 38. Ke5 {[%clk 00:23:38]} {[%emt 00:00:10]} Bd7 {[%clk
00:14:41]} {[%emt 00:00:13]} 39. Bd5 {[%clk 00:24:03]} {[%emt 00:00:05]} Bc8
{[%clk 00:14:20]} {[%emt 00:00:51]} 40. Be6 {[%clk 00:24:08]} {[%emt 00:00:25]}
Ba6 {[%clk 00:14:39]} {[%emt 00:00:11]} 41. Bd5 {[%clk 00:23:58]} {[%emt
00:00:40]} Bc8 {[%clk 00:14:49]} {[%emt 00:00:20]} 42. f4 {[%clk 00:23:09]}
{[%emt 00:01:19]} Bd7 {[%clk 00:14:49]} {[%emt 00:00:30]} 43. Kd6 {[%clk
00:23:33]} {[%emt 00:00:06]} Bc8 {[%clk 00:14:43]} {[%emt 00:00:36]} 44. Ke7
{[%clk 00:23:47]} {[%emt 00:00:16]} Bf5 {[%clk 00:14:56]} {[%emt 00:00:17]} 45.
Be6 {[%clk 00:24:12]} {[%emt 00:00:06]} Bd3 {[%clk 00:15:11]} {[%emt 00:00:14]}
46. Bf7 {[%clk 00:24:33]} {[%emt 00:00:09]} Bc2 {[%clk 00:15:22]} {[%emt
00:00:19]} 47. Be8 {[%clk 00:24:35]} {[%emt 00:00:28]} Bd3 {[%clk 00:15:42]}
{[%emt 00:00:09]} 48. Kd6 {[%clk 00:24:57]} {[%emt 00:00:09]} Bc2 {[%clk
00:15:58]} {[%emt 00:00:13]} 49. Ke5 {[%clk 00:25:24]} {[%emt 00:00:04]} Bf5
{[%clk 00:16:08]} {[%emt 00:00:20]} 50. Bc6 {[%clk 00:25:40]} {[%emt 00:00:15]}
Bc8 {[%clk 00:16:24]} {[%emt 00:00:13]} 51. Be4 {[%clk 00:26:06]} {[%emt
00:00:04]} Bh3 {[%clk 00:16:42]} {[%emt 00:00:11]} 52. f5 {[%clk 00:26:29]}
{[%emt 00:00:07]} gxf5 {[%clk 00:17:05]} {[%emt 00:00:08]} 53. Bxf5 {[%clk
00:26:55]} {[%emt 00:00:04]} Bf1 {[%clk 00:17:25]} {[%emt 00:00:10]} 54. Ke4
{[%clk 00:26:24]} {[%emt 00:00:30]} 1/2-1/2

[Event "NJSK 2018 Jeugd A"]
[Site "Assen, Netherlands"]
[Date "2018.05.03"]
[Round "5.3"]
[White "Van Baar, Esper"]
[Black "De Boer, Bas"]
[Result "1-0"]
[TimeControl "40/90m+30m+30sec/move"]
[WhiteElo "2237"]
[BlackElo "2159"]

1. e4 {[%clk 01:30:59]} {[%emt 18:24:02]} c5 {[%clk 01:30:55]} {[%emt
00:00:05]} 2. Nf3 {[%clk 01:31:23]} {[%emt 00:00:07]} e6 {[%clk 01:31:22]}
{[%emt 00:00:03]} 3. c3 {[%clk 01:31:47]} {[%emt 00:00:06]} Nf6 {[%clk
01:30:26]} {[%emt 00:01:25]} 4. e5 {[%clk 01:31:57]} {[%emt 00:00:21]} Nd5
{[%clk 01:30:46]} {[%emt 00:00:09]} 5. d4 {[%clk 01:32:09]} {[%emt 00:00:19]}
cxd4 {[%clk 01:30:51]} {[%emt 00:00:25]} 6. cxd4 {[%clk 01:32:17]} {[%emt
00:00:22]} d6 {[%clk 01:30:14]} {[%emt 00:01:07]} 7. Bc4 {[%clk 01:31:23]}
{[%emt 00:01:24]} Nc6 {[%clk 01:28:03]} {[%emt 00:02:40]} 8. O-O {[%clk
01:29:21]} {[%emt 00:02:32]} Be7 {[%clk 01:25:31]} {[%emt 00:03:02]} 9. Qe2
{[%clk 01:27:50]} {[%emt 00:02:01]} Na5 {[%clk 01:09:55]} {[%emt 00:16:06]} 10.
Bxd5 {[%clk 01:21:12]} {[%emt 00:07:08]} exd5 {[%clk 01:07:20]} {[%emt
00:03:06]} 11. Nc3 {[%clk 01:11:50]} {[%emt 00:09:52]} Be6 {[%clk 01:03:26]}
{[%emt 00:04:24]} 12. exd6 {[%clk 01:09:04]} {[%emt 00:03:16]} Qxd6 {[%clk
01:02:37]} {[%emt 00:01:18]} 13. Nb5 {[%clk 01:00:51]} {[%emt 00:08:43]} Qb6
{[%clk 00:56:35]} {[%emt 00:06:30]} 14. Bf4 {[%clk 01:00:40]} {[%emt 00:00:43]}
Rc8 {[%clk 00:56:47]} {[%emt 00:00:18]} 15. Rac1 {[%clk 00:50:06]} {[%emt
00:11:05]} O-O {[%clk 00:49:28]} {[%emt 00:07:47]} 16. Nc7 {[%emt 00:12:32]}
Nc4 {[%clk 00:46:02]} 17. b3 {[%clk 00:40:53]} {[%emt 00:01:39]} Rxc7 {[%clk
00:30:54]} {[%emt 00:15:38]} 18. Bxc7 {[%clk 00:40:20]} {[%emt 00:01:03]} Qxc7
{[%clk 00:31:18]} {[%emt 00:00:06]} 19. bxc4 {[%clk 00:39:30]} {[%emt
00:01:20]} dxc4 {[%clk 00:30:35]} {[%emt 00:01:13]} 20. Ne5 {[%clk 00:29:58]}
{[%emt 00:10:02]} b5 {[%clk 00:25:29]} {[%emt 00:05:36]} 21. Qe4 {[%clk
00:26:49]} {[%emt 00:03:39]} Qd6 {[%clk 00:20:57]} {[%emt 00:05:00]} 22. Rfe1
{[%clk 00:14:42]} {[%emt 00:12:37]} Bd5 {[%clk 00:19:35]} {[%emt 00:01:52]} 23.
Nxc4 {[%clk 00:09:27]} {[%emt 00:05:47]} bxc4 {[%clk 00:14:43]} {[%emt
00:05:21]} 24. Qxe7 {[%clk 00:09:53]} {[%emt 00:00:04]} Qg6 {[%clk 00:15:01]}
{[%emt 00:00:12]} 25. g3 {[%clk 00:09:58]} {[%emt 00:00:25]} Qg4 {[%clk
00:13:53]} {[%emt 00:01:39]} 26. Qe3 {[%clk 00:09:11]} {[%emt 00:01:16]} h5
{[%clk 00:13:10]} {[%emt 00:01:12]} 27. Rc3 {[%clk 00:08:45]} {[%emt 00:00:57]}
Qh3 {[%clk 00:11:35]} {[%emt 00:02:05]} 28. f3 {[%clk 00:08:24]} {[%emt
00:00:52]} Rb8 {[%clk 00:11:05]} {[%emt 00:00:59]} 29. Qf2 {[%clk 00:06:22]}
{[%emt 00:02:32]} h4 {[%clk 00:08:54]} {[%emt 00:02:41]} 30. Rce3 {[%clk
00:06:47]} {[%emt 00:00:05]} Rb6 {[%clk 00:08:25]} {[%emt 00:00:58]} 31. g4
{[%clk 00:05:51]} {[%emt 00:01:26]} Rg6 {[%clk 00:07:57]} {[%emt 00:00:59]} 32.
R1e2 {[%clk 00:02:16]} {[%emt 00:04:05]} f5 {[%clk 00:06:47]} {[%emt 00:01:40]}
33. Qg2 {[%clk 00:00:32]} {[%emt 00:02:15]} fxg4 {[%clk 00:07:05]} {[%emt
00:00:11]} 34. Qxh3 {[%clk 00:00:42]} {[%emt 00:00:20]} gxh3+ {[%clk 00:07:24]}
{[%emt 00:00:10]} 35. Kf1 {[%clk 00:00:54]} {[%emt 00:00:15]} Rf6 {[%clk
00:06:50]} {[%emt 00:01:08]} 36. Kf2 {[%clk 00:01:00]} {[%emt 00:00:24]} g5
{[%clk 00:06:43]} {[%emt 00:00:37]} 37. Re8+ {[%clk 00:00:47]} {[%emt
00:00:44]} Kf7 {[%clk 00:06:12]} {[%emt 00:00:58]} 38. R2e7+ {[%clk 00:00:51]}
{[%emt 00:00:28]} Kg6 {[%clk 00:06:21]} {[%emt 00:00:20]} 39. Re5 {[%clk
00:00:44]} {[%emt 00:00:38]} Bf7 {[%clk 00:04:33]} {[%emt 00:02:17]} 40. Rd8
{[%clk 00:01:13]} {[%emt 00:00:02]} g4 {[%clk 00:04:04]} {[%emt 00:00:59]} 41.
Re3 {[%clk 00:01:25]} {[%emt 00:00:18]} Rf5 {[%clk 00:01:43]} {[%emt 00:02:50]}
42. Rd6+ {[%clk 00:25:02]} {[%emt 00:06:54]} Kg7 {[%clk 00:30:40]} {[%emt
00:01:32]} 43. Rd7 {[%clk 00:20:39]} {[%emt 00:04:54]} Kg6 {[%clk 00:31:00]}
{[%emt 00:00:10]} 44. Rxa7 {[%clk 00:17:00]} {[%emt 00:04:10]} Bd5 {[%clk
00:28:55]} {[%emt 00:02:34]} 45. Ra5 {[%clk 00:16:09]} {[%emt 00:01:21]} g3+
{[%clk 00:23:46]} {[%emt 00:05:38]} 46. Kg1 {[%clk 00:13:33]} {[%emt 00:03:06]}
Kg5 {[%clk 00:21:52]} {[%emt 00:02:24]} 47. Re5 {[%clk 00:11:44]} {[%emt
00:02:20]} Rxe5 {[%clk 00:21:25]} {[%emt 00:00:57]} 48. dxe5 {[%clk 00:11:59]}
{[%emt 00:00:15]} Bxf3 {[%clk 00:21:27]} {[%emt 00:00:28]} 49. Rc5 {[%clk
00:11:38]} {[%emt 00:00:51]} Kf5 {[%clk 00:20:04]} {[%emt 00:01:53]} 50. a4
{[%clk 00:10:16]} {[%emt 00:01:53]} Ke6 {[%clk 00:19:38]} {[%emt 00:00:54]} 51.
a5 {[%clk 00:10:17]} {[%emt 00:00:30]} Bb7 {[%clk 00:15:55]} {[%emt 00:04:13]}
52. Rc7 {[%clk 00:09:51]} {[%emt 00:00:57]} Bd5 {[%clk 00:14:55]} {[%emt
00:01:29]} 53. a6 {[%clk 00:06:37]} {[%emt 00:03:44]} Kxe5 {[%clk 00:15:11]}
{[%emt 00:00:14]} 54. Rc5 {[%clk 00:00:57]} {[%emt 00:06:10]} Kd4 {[%clk
00:15:30]} {[%emt 00:00:11]} 55. Rxd5+ {[%clk 00:01:21]} {[%emt 00:00:05]} Kxd5
{[%clk 00:15:45]} {[%emt 00:00:16]} 56. a7 {[%clk 00:01:48]} {[%emt 00:00:03]}
Kd4 {[%clk 00:16:06]} {[%emt 00:00:08]} 57. a8=Q {[%clk 00:02:14]} {[%emt
00:00:05]} c3 {[%clk 00:14:41]} {[%emt 00:01:55]} 58. Qa1 {[%clk 00:01:21]}
{[%emt 00:01:23]} Kc4 {[%clk 00:13:08]} {[%emt 00:02:03]} 59. Qb1 {[%clk
00:01:14]} {[%emt 00:00:36]} Kd4 {[%clk 00:13:24]} {[%emt 00:00:14]} 60. Qc2
{[%clk 00:00:42]} {[%emt 00:01:03]} Kc4 {[%clk 00:13:37]} {[%emt 00:00:17]} 61.
Qe4+ {[%clk 00:00:32]} {[%emt 00:00:40]} Kb3 {[%clk 00:13:27]} {[%emt
00:00:39]} 62. Qb1+ {[%clk 00:00:58]} {[%emt 00:00:05]} Kc4 {[%clk 00:13:17]}
{[%emt 00:00:40]} 63. Kf1 {[%clk 00:01:20]} {[%emt 00:00:08]} gxh2 {[%clk
00:12:14]} {[%emt 00:01:32]} 64. Ke2 {[%clk 00:01:21]} {[%emt 00:00:29]} Kd5
{[%emt 00:02:01]} 1-0

[Event "NJSK 2018 Jeugd A"]
[Site "Assen, Netherlands"]
[Date "2018.05.03"]
[Round "5.4"]
[White "Nguyen, Kevin"]
[Black "Vrolijk, Liam"]
[Result "1-0"]
[TimeControl "40/90m+30m+30sec/move"]
[WhiteElo "2122"]
[BlackElo "2432"]

1. Nf3 {[%clk 01:30:57]} {[%emt 00:00:03]} d5 {[%clk 01:30:10]} {[%emt
00:00:50]} 2. g3 {[%clk 01:31:21]} {[%emt 00:00:07]} g6 {[%clk 01:30:28]}
{[%emt 00:00:13]} 3. Bg2 {[%clk 01:30:48]} {[%emt 00:01:02]} Bg7 {[%clk
01:30:49]} {[%emt 00:00:08]} 4. O-O {[%clk 01:29:50]} {[%emt 00:01:29]} e5
{[%clk 01:30:43]} {[%emt 00:00:36]} 5. c4 {[%clk 01:28:36]} {[%emt 00:01:43]}
d4 {[%clk 01:25:40]} {[%emt 00:05:33]} 6. d3 {[%clk 01:28:16]} {[%emt
00:00:51]} a5 {[%clk 01:23:46]} {[%emt 00:02:24]} 7. e3 {[%clk 01:26:17]}
{[%emt 00:02:29]} Ne7 {[%clk 01:22:36]} {[%emt 00:01:39]} 8. exd4 {[%clk
01:24:48]} {[%emt 00:01:59]} exd4 {[%clk 01:22:57]} {[%emt 00:00:09]} 9. Bf4
{[%clk 01:24:09]} {[%emt 00:01:10]} Nbc6 {[%clk 01:17:55]} {[%emt 00:05:32]} 10.
Re1 {[%clk 01:14:13]} {[%emt 00:10:26]} O-O {[%clk 01:16:58]} {[%emt 00:01:26]}
11. Na3 {[%clk 01:08:21]} {[%emt 00:06:23]} Bf5 {[%clk 01:16:06]} {[%emt
00:01:21]} 12. Nb5 {[%clk 01:08:06]} {[%emt 00:00:46]} Rc8 {[%clk 01:15:53]}
{[%emt 00:00:42]} 13. Qd2 {[%clk 01:06:59]} {[%emt 00:01:37]} Re8 {[%clk
01:11:06]} {[%emt 00:05:17]} 14. Bh6 {[%clk 01:06:20]} {[%emt 00:01:10]} Bh8
{[%clk 01:08:45]} {[%emt 00:02:50]} 15. a3 {[%clk 01:04:36]} {[%emt 00:02:14]}
a4 {[%clk 01:03:02]} {[%emt 00:06:12]} 16. h3 {[%clk 01:03:06]} {[%emt
00:02:02]} Qd7 {[%clk 00:58:05]} {[%emt 00:05:26]} 17. g4 {[%clk 00:59:31]}
{[%emt 00:04:05]} Be6 {[%clk 00:58:13]} {[%emt 00:00:22]} 18. Qf4 {[%clk
00:53:55]} {[%emt 00:06:07]} Na5 {[%clk 00:53:10]} {[%emt 00:05:33]} 19. Ne5
{[%clk 00:30:31]} {[%emt 00:23:54]} Qd8 {[%clk 00:52:02]} {[%emt 00:01:37]} 20.
Nxd4 {[%clk 00:30:00]} {[%emt 00:01:01]} Qd6 {[%clk 00:52:22]} {[%emt
00:00:10]} 21. c5 {[%clk 00:28:40]} {[%emt 00:01:50]} Qa6 {[%clk 00:52:46]}
{[%emt 00:00:07]} 22. Nxe6 {[%clk 00:27:01]} {[%emt 00:02:09]} Qxe6 {[%clk
00:53:09]} {[%emt 00:00:06]} 23. Nc6 {[%clk 00:27:13]} {[%emt 00:00:19]} Nexc6
{[%clk 00:53:32]} {[%emt 00:00:06]} 24. Rxe6 {[%clk 00:27:33]} {[%emt
00:00:10]} Rxe6 {[%clk 00:53:56]} {[%emt 00:00:06]} 25. Bd5 {[%clk 00:25:43]}
{[%emt 00:02:20]} Re7 {[%clk 00:54:03]} {[%emt 00:00:22]} 26. Qxa4 {[%clk
00:25:26]} {[%emt 00:00:48]} Re5 {[%clk 00:53:42]} {[%emt 00:00:51]} 27. Bg2
{[%clk 00:24:09]} {[%emt 00:01:48]} Re2 {[%clk 00:52:15]} {[%emt 00:01:56]} 28.
Rb1 {[%clk 00:23:31]} {[%emt 00:01:08]} Rxb2 {[%clk 00:51:01]} {[%emt
00:01:45]} 29. Rxb2 {[%clk 00:22:59]} {[%emt 00:01:02]} Bxb2 {[%clk 00:51:23]}
{[%emt 00:00:07]} 30. Bd2 {[%clk 00:22:14]} {[%emt 00:01:15]} 1-0

[Event "NJSK 2018 Jeugd A"]
[Site "Assen, Netherlands"]
[Date "2018.05.03"]
[Round "5.5"]
[White "Mesman, Edwyn"]
[Black "Bekedam, Tyro"]
[Result "1/2-1/2"]
[TimeControl "40/90m+30m+30sec/move"]
[WhiteElo "2082"]
[BlackElo "1955"]

1. Nf3 {[%clk 01:29:51]} {[%emt 00:01:09]} d5 {[%clk 01:30:36]} {[%emt
00:00:24]} 2. g3 {[%clk 01:30:09]} {[%emt 00:00:12]} Nf6 {[%clk 01:30:24]}
{[%emt 00:00:41]} 3. Bg2 {[%clk 01:30:31]} {[%emt 00:00:09]} c6 {[%clk
01:30:25]} {[%emt 00:00:29]} 4. O-O {[%clk 01:30:44]} {[%emt 00:00:17]} Bf5
{[%clk 01:30:03]} {[%emt 00:00:51]} 5. c4 {[%clk 01:30:59]} {[%emt 00:00:16]}
e6 {[%clk 01:29:13]} {[%emt 00:01:20]} 6. Qb3 {[%clk 01:30:31]} {[%emt
00:00:58]} Qb6 {[%clk 01:28:19]} {[%emt 00:01:24]} 7. d3 {[%clk 01:29:15]}
{[%emt 00:01:45]} Nbd7 {[%clk 01:26:44]} {[%emt 00:02:06]} 8. Nc3 {[%clk
01:25:25]} {[%emt 00:04:20]} Nc5 {[%clk 01:22:10]} {[%emt 00:05:04]} 9. Qxb6
{[%clk 01:24:22]} {[%emt 00:01:34]} axb6 {[%clk 01:22:35]} {[%emt 00:00:04]} 10.
Nh4 {[%clk 01:23:20]} {[%emt 00:01:31]} Nb3 {[%clk 00:58:58]} {[%emt 00:24:08]}
11. Rb1 {[%clk 00:54:01]} {[%emt 00:29:48]} Nxc1 {[%clk 00:58:11]} {[%emt
00:01:17]} 12. Rfxc1 {[%clk 00:54:25]} {[%emt 00:00:06]} Bg4 {[%clk 00:48:51]}
{[%emt 00:09:51]} 13. h3 {[%clk 00:48:17]} {[%emt 00:06:38]} Bh5 {[%clk
00:48:54]} {[%emt 00:00:26]} 14. g4 {[%clk 00:45:36]} {[%emt 00:03:11]} Bg6
{[%clk 00:48:36]} {[%emt 00:00:48]} 15. cxd5 {[%clk 00:40:23]} {[%emt
00:05:44]} Nxd5 {[%clk 00:46:21]} {[%emt 00:02:44]} 16. Nxd5 {[%clk 00:26:00]}
{[%emt 00:14:52]} exd5 {[%clk 00:46:25]} {[%emt 00:00:28]} 17. a3 {[%clk
00:26:06]} {[%emt 00:00:24]} 1/2-1/2